bitfinex-derivatives/quotes_ETHF0:USTF0_20250125
["timestamp","ask_amount","ask_price","bid_price","bid_amount"]
[1737771184326,0.4844,3303.2,3302.9,2.33398985]
[1737771184824,0.4844,3303.2,3302.8,0.48445]
[1737771184825,0.48443,3303.0,3302.6,6.02626985]
[1737771185031,1.0303,3302.9,3302.6,6.02626985]
[1737771185224,0.5066,3302.8,3302.6,6.02626985]
[1737771185523,0.5066,3302.8,3302.0,1.46651]
[1737771185524,3.2078,3302.7,3302.5,0.48449]
[1737771185730,3.2078,3302.7,3302.5,0.4845]
[1737771187928,3.2078,3302.7,3302.4,0.48451]
[1737771188531,3.2078,3302.7,3302.5,0.4845]
[1737771189326,3.2078,3302.7,3302.3,2.33398985]
[1737771189528,3.2078,3302.7,3302.4,0.4607092]
[1737771189729,3.2078,3302.7,3302.6,0.48449]
[1737771189926,3.2078,3302.7,3302.6,3.27918905]
[1737771190535,3.2078,3302.7,3302.6,3.27929304]
[1737771191737,3.2078,3302.7,3302.6,3.279301]
[1737771192236,3.2078,3302.7,3302.6,3.27929879]
[1737771192923,3.6937,3303.6,3303.1,0.48441]
[1737771193235,0.5069,3303.5,3303.3,0.48438]
[1737771193426,0.5069,3303.5,3303.4,0.46081894]
[1737771195337,0.5069,3303.5,3302.9,2.33398985]
[1737771195338,0.99125,3303.5,3302.9,2.33398985]
[1737771195636,0.99125,3303.5,3303.2,0.4844]
[1737771195936,0.99125,3303.5,3303.3,0.46052314]
[1737771196133,0.99125,3303.5,3303.2,0.4844]
[1737771196429,0.5069,3303.5,3303.3,0.46051253]
[1737771196631,0.5069,3303.5,3303.4,0.94488253]
[1737771200039,0.5069,3303.5,3303.4,0.94474557]
[1737771201337,3.6937,3303.6,3303.4,0.46037557]
[1737771201533,3.6937,3303.6,3303.5,0.94468902]
[1737771202139,3.6937,3303.6,3303.5,0.94466459]
[1737771202336,3.6937,3303.6,3303.5,0.46031459]
[1737771202540,3.6937,3303.6,3303.5,0.48435]
[1737771203042,3.6937,3303.6,3303.5,0.94467292]
[1737771203642,3.6937,3303.6,3303.5,0.48435]
[1737771204342,3.6937,3303.6,3303.2,2.33398985]
[1737771204641,3.6937,3303.6,3303.4,0.48436]
[1737771204838,3.6937,3303.6,3303.2,2.33398985]
[1737771205041,0.48437,3303.4,3303.3,0.46028314]
[1737771205347,3.6937,3303.6,3303.3,0.46036323]
[1737771205643,0.48439,3303.3,3303.1,0.48441]
[1737771205838,3.7331,3303.2,3302.5,4.75454223]
[1737771206039,3.2078,3302.8,3302.7,0.48446]
[1737771206238,1.0263,3303.2,3302.7,0.48446]
[1737771206239,4.2341,3303.2,3302.7,0.46041328]
[1737771206436,0.48442,3303.1,3302.8,0.94495061]
[1737771206632,4.71851,3303.2,3302.9,0.94494061]
[1737771206845,4.2341,3303.2,3302.9,0.48444]
[1737771207143,4.2341,3303.2,3303.1,0.48441]
[1737771207345,4.2341,3303.2,3303.1,0.93455496]
[1737771207737,4.2341,3303.2,3303.1,0.48441]
[1737771209044,4.2341,3303.2,3302.6,2.33398985]
[1737771209241,0.48443,3303.0,3302.8,0.48445]
[1737771209846,0.5034,3303.1,3302.8,0.48445]
[1737771210047,0.98782,3303.1,3302.8,0.48445]
[1737771210347,0.5034,3303.1,3302.6,2.33398985]
[1737771210539,0.48443,3303.0,3302.7,0.48446]
[1737771211143,3.2078,3302.8,3302.7,0.48446]
[1737771211746,3.2078,3302.8,3302.6,2.81846985]
[1737771211946,0.5271,3302.7,3302.6,2.81846985]
[1737771218444,0.5271,3302.7,3302.4,3.2078]
[1737771218644,0.501,3302.6,3302.4,3.2078]
[1737771218941,0.5089,3302.5,3302.3,2.81850985]
[1737771219143,0.5089,3302.5,3302.3,2.33398985]
[1737771219746,0.9934,3302.5,3302.3,2.33398985]
[1737771220446,0.48452,3302.4,3302.2,4.75454223]
[1737771220650,0.99341,3302.5,3302.2,4.75454223]
[1737771220851,0.48452,3302.4,3302.2,4.75454223]
[1737771221051,0.48452,3302.4,3302.0,6.02635985]
[1737771221753,0.5089,3302.5,3302.2,0.48453]
[1737771222254,0.5089,3302.5,3302.3,2.33398985]
[1737771222554,0.5089,3302.5,3302.4,0.48452]
[1737771223757,0.5089,3302.5,3302.3,2.33398985]
[1737771223960,0.5089,3302.5,3302.3,2.81850985]
[1737771224258,3.69232,3302.4,3302.1,0.48455]
[1737771224853,3.69232,3302.4,3302.0,2.81855985]
[1737771224854,0.48454,3302.3,3302.0,2.81855985]
[1737771225056,3.2078,3302.4,3301.9,0.0045451]
[1737771225057,0.48455,3302.2,3301.9,0.0045451]
[1737771225250,0.5034,3302.2,3301.9,0.0045451]
[1737771225453,0.48457,3302.1,3301.9,0.0045451]
[1737771225655,3.7122,3302.0,3301.9,0.0045451]
[1737771225954,3.7122,3302.0,3301.9,0.4891351]
[1737771226356,3.7122,3302.0,3301.9,0.0045451]
[1737771226963,3.7122,3302.0,3301.9,0.4891351]
[1737771227259,3.7122,3302.0,3301.9,0.0045451]
[1737771227461,3.7122,3302.0,3301.9,0.4891351]
[1737771227658,3.7122,3302.0,3301.9,0.0045451]
[1737771227860,4.19677,3302.0,3301.9,0.0045451]
[1737771228753,3.7122,3302.0,3301.9,0.0045451]
[1737771228958,3.7122,3302.0,3301.9,0.4891351]
[1737771237164,3.2078,3302.4,3302.3,0.48453]
[1737771238865,0.5086,3302.7,3302.6,0.48449]
[1737771239168,0.5086,3302.7,3302.6,2.81847985]
[1737771240365,0.99307,3302.7,3302.5,0.48449]
[1737771240673,0.4804,3302.6,3302.5,0.48449]
[1737771242168,0.48451,3302.4,3302.3,2.33398985]
[1737771242469,3.2078,3302.5,3302.3,2.33398985]
[1737771242670,3.69231,3302.5,3302.3,2.33398985]
[1737771242968,0.48451,3302.4,3302.3,2.33398985]
[1737771244169,3.69231,3302.5,3302.3,2.33398985]
[1737771248564,3.2078,3302.5,3302.3,2.33398985]
[1737771248768,3.2078,3302.5,3302.4,0.48451]
[1737771249472,0.5086,3302.7,3302.3,2.33398985]
[1737771249672,0.5086,3302.7,3302.6,2.81847985]
[1737771259286,3.6847,3302.8,3302.7,0.48447]
[1737771264483,0.4769,3302.8,3302.7,0.48447]
[1737771269183,3.7063,3303.1,3302.6,2.33398985]
[1737771269487,0.4985,3303.1,3303.0,2.81841985]
[1737771273483,0.4958,3303.4,3303.3,0.48438]
[1737771273672,0.9864,3303.4,3303.3,0.48438]
[1737771274078,0.5196,3303.6,3303.3,2.33398985]
[1737771274381,0.5196,3303.6,3303.5,0.48435]
[1737771274683,0.5196,3303.6,3303.5,0.9361139]
[1737771274885,0.5196,3303.6,3303.5,0.4517639]
[1737771275090,0.9978,3303.6,3303.0,2.33398985]
[1737771275274,3.2078,3303.5,3303.1,0.45183153]
[1737771275481,0.48439,3303.3,3303.2,0.45183153]
[1737771277484,0.48437,3303.4,3303.2,0.45183153]
[1737771277693,0.48437,3303.4,3303.1,0.48441]
[1737771277883,0.48437,3303.4,3303.2,0.45190288]
[1737771278084,0.48437,3303.4,3303.1,0.48441]
[1737771278389,0.48437,3303.4,3303.2,0.45188041]
[1737771278581,0.48437,3303.4,3303.3,0.45188041]
[1737771278977,3.2078,3303.5,3303.3,0.45188041]
[1737771279178,0.9978,3303.6,3303.5,0.48435]
[1737771279384,0.9978,3303.6,3303.5,0.93621139]
[1737771279684,0.9978,3303.6,3303.5,0.93605462]
[1737771280484,0.9978,3303.6,3303.5,0.93606006]
[1737771281986,0.9978,3303.6,3303.5,0.93592648]
[1737771284389,0.9978,3303.6,3303.4,0.48436]
[1737771284586,0.9978,3303.6,3303.5,0.48435]
[1737771284789,0.9978,3303.6,3303.5,0.93591242]
[1737771286088,0.9978,3303.6,3303.5,0.93601391]
[1737771286593,0.9978,3303.6,3303.5,0.93588456]
[1737771288298,0.9978,3303.6,3303.5,0.93585378]
[1737771291398,4.68994,3303.6,3303.5,0.45150378]
[1737771291599,4.2056,3303.6,3303.0,2.33398985]
[1737771291901,0.48438,3303.4,3303.1,0.9439093]
[1737771292094,4.2056,3303.6,3303.2,0.4594993]
[1737771292403,0.48438,3303.3,3303.1,0.48441]
[1737771292593,4.2056,3303.6,3303.1,0.48441]
[1737771292899,0.481,3303.2,3303.0,2.81840985]
[1737771293100,1.0213,3303.1,3303.0,2.81840985]
[1737771293301,4.2291,3303.1,3303.0,3.27801666]
[1737771293495,4.2291,3303.1,3303.0,0.45960681]
[1737771293702,4.2291,3303.1,3302.9,0.48444]
[1737771293901,4.2291,3303.1,3303.0,0.45970034]
[1737771294102,4.2291,3303.1,3303.0,0.94413034]
[1737771294404,4.2291,3303.1,3302.9,0.48443]
[1737771294606,4.71352,3303.1,3302.8,0.48445]
[1737771294802,4.71352,3303.1,3302.9,0.45975433]
[1737771294998,4.71352,3303.1,3302.7,2.33398985]
[1737771294999,4.2291,3303.1,3302.7,2.33398985]
[1737771295199,4.2291,3303.1,3303.0,0.48443]
[1737771295492,4.2291,3303.1,3303.0,0.94418783]
[1737771295697,4.2291,3303.1,3303.0,0.45975783]
[1737771297598,4.71351,3303.1,3303.0,0.45975783]
[1737771298110,4.2291,3303.1,3303.0,0.45975783]
[1737771298910,4.2291,3303.1,3303.0,0.45987004]
[1737771300908,4.2291,3303.1,3303.0,0.45981823]
[1737771302208,4.2291,3303.1,3302.9,0.48443]
[1737771302409,4.2291,3303.1,3303.0,0.45971885]
[1737771303811,4.2291,3303.1,3302.9,0.48443]
[1737771304314,4.2291,3303.1,3303.0,0.45965012]
[1737771304611,4.2291,3303.1,3303.0,0.45964479]
[1737771305006,4.2291,3303.1,3303.0,0.45963793]
[1737771307010,4.2291,3303.1,3303.0,2.79362778]
[1737771307810,4.2291,3303.1,3303.0,3.27805778]
[1737771310811,4.2291,3303.1,3303.0,2.81841985]
[1737771311015,4.2291,3303.1,3303.0,3.27808918]
[1737771312217,4.2291,3303.1,3303.0,2.81841985]
[1737771312412,4.2291,3303.1,3303.0,3.27809255]
[1737771313313,4.2291,3303.1,3303.0,2.81841985]
[1737771313511,4.2291,3303.1,3303.0,3.27810205]
[1737771314416,4.2291,3303.1,3303.0,2.79367205]
[1737771314719,4.71351,3303.1,3303.0,2.33398985]
[1737771315634,4.71351,3303.1,3303.0,1.10038085]
[1737771315932,4.2291,3303.1,3303.0,1.58481085]
[1737771316532,4.2291,3303.1,3303.0,2.04449488]
[1737771319233,4.2291,3303.1,3303.0,3.14487573]
[1737771319432,4.2291,3303.1,3303.0,2.04449488]
[1737771320532,4.2291,3303.1,3303.0,2.04523252]
[1737771321034,4.2291,3303.1,3303.0,2.04521793]
[1737771322536,4.2291,3303.1,3303.0,2.04573265]
[1737771324633,4.2291,3303.1,3303.0,1.58481085]
[1737771324834,4.2291,3303.1,3303.0,2.03461206]
[1737771326732,4.2291,3303.1,3303.0,2.03456677]
[1737771326927,3.2078,3303.1,3303.0,3.13494762]
[1737771327133,1.5095,3303.8,3303.0,2.65051762]
[1737771327332,1.5095,3303.8,3303.7,1.58470085]
[1737771327544,1.5095,3303.8,3303.7,2.03386329]
[1737771328636,1.0279,3303.8,3303.7,2.03386329]
[1737771328840,3.2078,3304.0,3303.9,0.4843]
[1737771329141,3.2078,3304.0,3303.9,2.03351007]
[1737771329640,3.2078,3304.0,3303.9,3.25611205]
[1737771332143,3.2078,3304.0,3303.9,2.80728283]
[1737771332440,3.69208,3304.0,3303.9,2.32298283]
[1737771332738,3.2078,3304.0,3303.6,2.32752793]
[1737771332946,3.2078,3304.0,3303.8,0.4843]
[1737771333235,3.2078,3304.0,3303.9,0.4843]
[1737771333445,3.2078,3304.0,3303.8,0.4843]
[1737771335544,3.2078,3304.0,3303.9,0.4843]
[1737771336641,3.2078,3304.0,3303.6,2.32752793]
[1737771336642,3.2078,3304.0,3303.8,0.4843]
[1737771337141,3.2078,3304.0,3303.6,2.32752793]
[1737771337347,3.69208,3304.0,3303.7,0.48432]
[1737771337642,3.2078,3304.0,3303.8,0.4843]
[1737771339342,1.478,3304.3,3303.9,2.80728283]
[1737771339646,0.4975,3304.3,3304.2,2.80723283]
[1737771340246,0.4975,3304.3,3304.2,2.32298283]
[1737771340442,0.48426,3304.2,3303.9,2.32298283]
[1737771340650,3.2078,3304.1,3303.9,2.80727283]
[1737771340840,1.0139,3304.0,3303.9,2.80727283]
[1737771341946,1.0139,3304.0,3303.9,2.32298283]
[1737771342848,1.0139,3304.0,3303.9,2.80728283]
[1737771344850,1.49818,3304.0,3303.6,2.32752793]
[1737771345051,1.49818,3304.0,3303.7,0.48432]
[1737771345649,1.49818,3304.0,3303.6,2.32752793]
[1737771345851,1.0139,3304.0,3303.8,0.48431]
[1737771347647,1.0139,3304.0,3303.6,2.32752793]
[1737771347952,1.0139,3304.0,3303.8,0.4843]
[1737771348154,0.5268,3303.9,3303.8,0.4843]
[1737771348457,0.5268,3303.9,3303.6,2.32752793]
[1737771348458,3.2078,3304.1,3303.6,2.32752793]
[1737771348754,3.2078,3304.1,3304.0,0.48428]
[1737771351652,3.2078,3304.1,3304.0,1.5840606]
[1737771354353,1.21039,3304.9,3304.0,1.5840606]
[1737771354354,3.2078,3304.9,3304.0,5.4073612]
[1737771354548,1.0025,3305.1,3304.8,1.0997806]
[1737771354747,1.0025,3305.1,3304.9,0.48414]
[1737771354951,1.0025,3305.1,3304.8,1.0997806]
[1737771355256,1.0025,3305.1,3304.9,0.48414]
[1737771356050,1.0025,3305.1,3305.0,1.0997806]
[1737771356252,1.0025,3305.1,3305.0,1.5839106]
[1737771356453,1.0025,3305.1,3305.0,2.03322408]
[1737771356645,1.0025,3305.1,3305.0,1.54909408]
[1737771356846,1.0025,3305.1,3305.0,1.5839106]
[1737771357055,1.0025,3305.1,3305.0,1.0997806]
[1737771357259,1.0025,3305.1,3305.0,1.5839106]
[1737771357457,1.0025,3305.1,3305.0,1.0997806]
[1737771358055,1.0025,3305.1,3305.0,1.5839106]
[1737771358249,1.0025,3305.1,3305.0,1.0997806]
[1737771358557,3.7017,3305.3,3305.2,0.4841]
[1737771358754,3.7017,3305.3,3305.2,1.0997806]
[1737771358957,3.7017,3305.3,3304.6,3.2078]
[1737771358958,0.48412,3305.1,3305.0,1.0997806]
[1737771359657,0.4818,3305.1,3305.0,1.0997806]
[1737771362658,0.4818,3305.1,3305.0,1.5839106]
[1737771362866,0.4818,3305.1,3305.0,1.0997806]
[1737771363859,3.2078,3305.3,3305.0,2.1995612]
[1737771364161,13.08136787,3307.8,3305.0,2.1995612]
[1737771364162,1.4586,3305.8,3305.2,1.0997806]
[1737771364460,1.4586,3305.8,3305.7,1.5838106]
[1737771364657,1.4586,3305.8,3305.7,1.0997806]
[1737771365460,1.4586,3305.8,3305.7,1.5838106]
[1737771365661,0.4834,3305.8,3305.7,2.32053611]
[1737771365868,3.2078,3305.9,3305.8,0.48402]
[1737771366161,3.2078,3305.9,3305.7,2.80456611]
[1737771366564,3.2078,3305.9,3305.7,2.32053611]
[1737771367459,3.2078,3305.9,3305.7,2.80456611]
[1737771368958,3.2078,3305.9,3305.7,2.32053611]
[1737771369565,3.2078,3305.9,3305.8,0.4537]
[1737771370168,3.2078,3305.9,3305.7,2.32053611]
[1737771370364,0.48402,3305.8,3305.7,2.32053611]
[1737771370667,1.46042,3305.8,3305.7,2.32053611]
[1737771370870,1.94752,3305.8,3305.7,2.32053611]
[1737771371865,1.4635,3305.8,3305.4,2.32053611]
[1737771372071,3.2078,3305.5,3305.4,2.32053611]
[1737771372260,3.69186,3305.5,3305.4,2.32053611]
[1737771373566,3.69186,3305.5,3305.2,0.00453768]
[1737771373567,0.48409,3305.3,3305.2,0.00453768]
[1737771376373,0.48562363,3305.3,3305.2,0.00453768]
[1737771377974,3.69342363,3305.3,3305.2,0.00453768]
[1737771379472,3.20933363,3305.3,3305.2,0.48863768]
[1737771380877,0.00153363,3305.3,3305.2,0.48863768]
[1737771381377,0.00153363,3305.3,3305.1,1.54473611]
[1737771381568,0.48419,3304.6,3304.5,2.32053611]
[1737771381766,3.2078,3304.6,3304.5,2.32053611]
[1737771381964,3.7338,3305.1,3304.5,2.32053611]
[1737771382172,0.48418,3304.7,3304.5,2.32053611]
[1737771382376,0.4875,3304.6,3304.5,2.32053611]
[1737771382967,3.7338,3305.1,3304.5,2.80474611]
[1737771383282,0.4875,3305.0,3304.7,0.48417]
[1737771383877,0.97164,3305.0,3304.8,2.32053611]
[1737771384676,0.97164,3305.0,3304.8,2.80469611]
[1737771384677,0.4875,3305.0,3304.8,2.80469611]
[1737771384978,0.4875,3305.0,3304.9,0.48415]
[1737771386078,0.4875,3305.0,3304.8,2.80468611]
[1737771386277,3.7338,3305.1,3304.9,0.48415]
[1737771386483,4.223,3305.1,3304.8,2.80469611]
[1737771387281,3.2078,3305.1,3305.0,0.48413]
[1737771387480,0.00153363,3305.3,3305.2,0.4841]
[1737771387684,0.00153363,3305.3,3305.2,2.80463611]
[1737771389080,0.48411,3305.2,3304.9,3.30368611]
[1737771389286,0.00153363,3305.3,3304.9,3.30368611]
[1737771389287,0.5224,3305.1,3304.9,3.30367611]
[1737771389775,4.21433,3305.1,3304.9,2.81953611]
[1737771389979,3.7302,3305.1,3304.9,3.30367611]
[1737771390183,3.7302,3305.1,3304.9,0.98314]
[1737771390477,4.21433,3305.1,3304.9,0.499]
[1737771390682,3.7302,3305.1,3304.5,1.0049]
[1737771390878,0.48416,3304.9,3304.5,1.0049]
[1737771391978,0.48416,3304.8,3304.5,1.0049]
[1737771392184,3.7302,3305.1,3304.6,2.32053611]
[1737771392575,0.48415,3304.9,3304.6,2.80471611]
[1737771392878,0.48415,3304.9,3304.6,2.32053611]
[1737771394181,3.7302,3305.1,3304.6,2.32053611]
[1737771394381,0.48417,3304.8,3304.6,2.32053611]
[1737771394783,0.48417,3304.8,3304.5,1.0049]
[1737771396182,3.2078,3304.7,3304.4,0.48421]
[1737771396384,1.0239,3304.6,3304.4,0.48421]
[1737771396682,1.5182,3304.6,3304.4,0.48421]
[1737771397088,1.5182,3304.6,3304.5,0.48421]
[1737771397290,0.9933,3304.6,3304.5,0.48421]
[1737771400586,3.2078,3304.7,3304.3,2.32507379]
[1737771400792,3.2078,3304.7,3304.6,2.80472611]
[1737771400990,3.7173,3305.2,3304.6,2.32053611]
[1737771401189,0.4985,3305.0,3304.9,0.48414]
[1737771401693,0.98264,3305.0,3304.6,2.32053611]
[1737771401895,0.4985,3305.0,3304.7,0.48417]
[1737771402195,0.98263,3305.0,3304.7,0.48417]
[1737771402389,0.4985,3305.0,3304.6,2.32053611]
[1737771402583,3.2078,3304.8,3304.5,0.4842]
[1737771402786,3.2078,3304.8,3304.3,2.32507379]
[1737771403082,3.2078,3304.8,3304.6,0.48419]
[1737771403796,0.48419,3304.6,3304.4,0.48421]
[1737771403984,3.2078,3304.8,3304.3,2.32507379]
[1737771403985,0.5263,3304.5,3304.3,0.00453768]
[1737771404293,3.69202,3304.4,3304.3,0.00453768]
[1737771411404,3.2078,3304.4,3303.5,3.70452021]
[1737771411599,3.2078,3303.8,3303.3,5.23218139]
[1737771411801,3.2078,3303.4,3303.3,4.74780139]
[1737771412003,3.2078,3303.4,3303.2,4.74780139]
[1737771412405,0.48438,3303.3,3303.2,4.74780139]
[1737771412599,3.69217,3303.4,3303.2,4.74780139]
[1737771412793,3.2078,3303.4,3303.2,4.74780139]
[1737771413203,3.2078,3303.4,3303.2,5.23219139]
[1737771413707,3.2078,3303.4,3303.3,0.48438]
[1737771414010,3.2078,3303.4,3303.2,4.74780139]
[1737771414508,0.5231,3303.3,3303.2,5.23219139]
[1737771414703,0.5231,3303.3,3303.2,0.48439]
[1737771418413,3.2078,3303.4,3303.3,0.48438]
[1737771421317,0.00453768,3303.6,3303.5,0.48435]
[1737771421518,0.00453768,3303.6,3303.5,2.80488611]
[1737771434514,0.00453768,3303.6,3303.5,0.48435]
[1737771434826,0.48888768,3303.6,3303.4,0.48437]
[1737771435023,0.99158768,3303.6,3303.4,0.48437]
[1737771435416,3.71503768,3303.6,3303.2,2.32053611]
[1737771435618,0.48439,3303.3,3303.0,1.01395768]
[1737771435824,0.97551,3303.2,3303.0,1.01395768]
[1737771436028,3.21233768,3303.6,3303.0,2.85007379]
[1737771436325,0.48436,3303.5,3303.2,0.48439]
[1737771436625,0.48439,3303.3,3303.0,0.48895768]
[1737771436829,0.9755,3303.2,3303.0,0.48895768]
[1737771437124,0.9755,3303.2,3303.0,0.00453768]
[1737771437125,0.4911,3303.2,3303.0,0.00453768]
[1737771437517,0.97551,3303.2,3303.0,0.00453768]
[1737771441630,0.97551,3303.2,3303.0,0.48895768]
[1737771442736,0.4911,3303.2,3303.0,0.48895768]
[1737771443035,0.4911,3303.2,3303.1,0.48441]
[1737771443933,0.4911,3303.2,3303.0,0.00453768]
[1737771444132,0.4911,3303.2,3303.0,0.48895768]
[1737771444426,0.9755,3303.2,3303.0,0.48895768]
[1737771444631,0.9755,3303.2,3303.0,0.48896768]
[1737771445334,0.9755,3303.2,3303.0,0.00453768]
[1737771445526,3.69221,3303.1,3303.0,0.00453768]
[1737771445722,3.69221,3303.1,3302.4,0.48451]
[1737771445723,3.2078,3303.1,3302.4,0.48451]
[1737771445922,3.69229,3302.6,3302.3,5.23232139]
[1737771446129,0.9772,3302.5,3302.3,4.74780139]
[1737771446634,1.46171,3302.5,3302.3,4.74780139]
[1737771446830,0.9772,3302.5,3302.3,5.23233139]
[1737771447031,1.4617,3302.5,3302.3,5.23233139]
[1737771447238,1.4617,3302.5,3302.3,4.74780139]
[1737771447937,0.9772,3302.5,3302.3,4.74780139]
[1737771448127,0.48451,3302.4,3302.3,4.74780139]
[1737771448823,0.9772,3302.5,3302.3,4.74780139]
[1737771449033,0.5263,3302.4,3302.3,5.23233139]
[1737771449824,0.5263,3302.4,3302.3,4.74780139]
[1737771450636,1.01081,3302.4,3302.3,4.74780139]
[1737771450832,0.48454,3302.2,3302.1,0.00453768]
[1737771451136,3.69234,3302.2,3302.1,0.00453768]
[1737771452235,3.2078,3302.2,3302.1,0.00453768]
[1737771452841,3.69234,3302.2,3302.1,0.00453768]
[1737771454129,0.48461,3301.8,3301.6,4.74780139]
[1737771454335,0.9841,3301.7,3301.6,4.74780139]
[1737771454638,0.9841,3301.7,3301.5,0.48464]
[1737771455841,0.9841,3301.7,3301.4,0.48465]
[1737771456038,1.46872,3301.7,3301.4,0.48465]
[1737771456233,0.9841,3301.7,3301.3,0.48920768]
[1737771456538,0.48464,3301.6,3301.3,0.48920768]
[1737771457041,0.48463,3301.6,3301.3,0.00453768]
[1737771457241,0.48464,3301.6,3301.3,0.00453768]
[1737771457543,0.5068,3301.5,3301.3,0.00453768]
[1737771459336,0.5068,3301.5,3301.3,0.48920768]
[1737771459535,0.5068,3301.5,3301.3,0.00453768]
[1737771459736,0.5068,3301.5,3301.3,0.48920768]
[1737771460446,0.5068,3301.5,3301.4,0.48466]
[1737771460742,0.5068,3301.5,3301.3,0.00453768]
[1737771461142,0.5068,3301.5,3301.3,0.48920768]
[1737771462340,3.2078,3301.4,3301.3,0.00453768]
[1737771462640,3.69246,3301.4,3301.3,0.00453768]
[1737771467840,0.48466,3301.4,3301.3,0.00453768]
[1737771468036,0.48466,3301.4,3300.3,5.52833611]
[1737771468037,8.69246,3301.4,3300.3,5.52833611]
[1737771468236,8.69246,3301.4,3300.3,3.2078]
[1737771468237,2.32053611,3300.8,3300.3,3.2078]
[1737771468443,0.48483,3300.3,3300.0,0.48486]
[1737771468848,0.48483,3300.3,3299.8,0.4843]
[1737771468849,3.2078,3300.4,3299.8,0.4843]
[1737771469047,0.48487,3300.0,3299.8,0.4843]
[1737771469350,3.2078,3300.4,3299.8,0.48884469]
[1737771469746,3.69268,3299.9,3299.8,0.00454469]
[1737771471646,3.2078,3299.9,3299.8,0.48944469]
[1737771471848,0.00454469,3300.2,3300.1,0.48485]
[1737771472052,4.69e-06,3300.2,3300.1,2.80538611]
[1737771472353,3.2078,3301.4,3300.1,7.32053611]
[1737771472545,3.69247,3301.4,3301.1,0.4847]
[1737771472852,3.2078,3301.4,3300.6,2.32053611]
[1737771473045,3.2078,3301.4,3301.2,0.48468]
[1737771473241,3.2078,3301.4,3301.1,0.4847]
[1737771473242,3.69247,3301.4,3301.1,0.4847]
[1737771473449,0.5008,3301.3,3301.1,0.4847]
[1737771475951,0.98548,3301.3,3301.0,0.48471]
[1737771477656,0.5008,3301.3,3300.7,0.4727]
[1737771477859,0.5008,3301.3,3301.0,0.48471]
[1737771479049,0.5008,3301.3,3301.1,0.4847]
[1737771479855,0.98548,3301.3,3301.0,0.48472]
[1737771482159,2.32053611,3301.1,3300.0,2.32053611]
[1737771482360,0.4848,3300.5,3300.1,0.48484]
[1737771482562,0.48483,3300.3,3299.9,0.48487]
[1737771482856,0.5043,3300.2,3300.0,0.48486]
[1737771483056,0.5043,3300.2,3299.8,0.00454469]
[1737771483259,0.98914,3300.2,3299.9,0.48487]
[1737771483660,0.5043,3300.2,3299.8,0.00454469]
[1737771483856,0.5043,3300.2,3300.0,0.48487]
[1737771484158,0.5043,3300.2,3300.1,0.48485]
[1737771488566,0.5043,3300.2,3299.8,0.00454469]
[1737771488756,0.98914,3300.2,3299.8,0.00454469]
[1737771488962,0.98914,3300.2,3299.9,0.48487]
[1737771489460,0.48486,3300.1,3299.8,0.48943469]
[1737771490155,0.5043,3300.2,3299.8,0.00454469]
[1737771490354,0.48488,3299.9,3299.8,0.00454469]
[1737771494857,0.48488,3300.0,3299.8,0.00454469]
[1737771495167,3.7121,3300.2,3300.0,0.48486]
[1737771495364,4.19695,3300.2,3299.9,0.48488]
[1737771495569,0.48485,3300.1,3299.8,0.48943469]
[1737771496370,4.19695,3300.2,3299.9,0.48487]
[1737771496564,3.7121,3300.2,3300.0,0.48486]
[1737771497164,4.19694,3300.2,3299.9,0.48487]
[1737771497370,3.7121,3300.2,3299.8,0.00454469]
[1737771497668,0.48485,3300.1,3299.8,0.48943469]
[1737771498268,0.48485,3300.1,3299.9,0.48488]
[1737771498955,0.48485,3300.1,3299.8,0.48943469]
[1737771502170,0.48485,3300.1,3299.8,0.00454469]
[1737771502371,3.7121,3300.2,3299.9,0.48488]
[1737771503670,3.7121,3300.2,3299.8,0.00454469]
[1737771504468,3.7121,3300.2,3300.0,0.48486]
[1737771505074,3.7121,3300.2,3300.1,0.48485]
[1737771512477,3.7121,3300.2,3299.8,0.00454469]
[1737771512478,3.7121,3300.2,3300.0,0.48486]
[1737771512672,3.7121,3300.2,3299.8,0.00454469]
[1737771513077,3.7121,3300.2,3300.0,0.48485]
[1737771514879,3.7121,3300.2,3299.8,0.00454469]
[1737771515478,3.7121,3300.2,3300.1,0.48485]
[1737771516375,4.19539982,3300.2,3300.1,0.48485]
[1737771534201,0.48329982,3300.2,3300.1,0.48485]
[1737771534400,9.82e-06,3301.0,3300.9,0.48473]
[1737771534607,9.82e-06,3301.0,3300.9,2.80526611]
[1737771534806,1.0412,3301.4,3300.9,2.32053611]
[1737771535105,1.0412,3301.4,3301.3,0.48468]
[1737771536809,3.2078,3302.0,3301.5,0.48465]
[1737771537008,3.2078,3302.0,3301.5,2.80518611]
[1737771537309,4.69e-06,3301.6,3301.5,5.78918611]
[1737771537505,4.69e-06,3301.6,3301.5,6.28778611]
[1737771541510,4.69e-06,3301.6,3301.5,3.46865]
[1737771541709,4.69e-06,3301.6,3301.4,3.2078]
[1737771542105,0.48464469,3301.6,3301.4,3.2078]
[1737771542510,0.48464469,3301.6,3301.3,4.74780139]
[1737771543113,0.48464469,3301.6,3301.2,0.48468]
[1737771543706,4.69e-06,3301.6,3300.9,6.01603611]
[1737771543915,4.69e-06,3301.6,3301.5,0.48465]
[1737771544208,4.69e-06,3301.6,3300.9,6.01603611]
[1737771544409,4.69e-06,3301.6,3301.2,0.48468]
[1737771544615,4.69e-06,3301.6,3300.9,6.01603611]
[1737771544808,4.69e-06,3301.6,3301.2,0.48468]
[1737771545011,4.69e-06,3301.6,3301.4,0.48465]
[1737771545211,4.69e-06,3301.6,3301.2,2.32053611]
[1737771545409,4.69e-06,3301.6,3301.5,0.48465]
[1737771545611,4.69e-06,3301.6,3301.5,2.80518611]
[1737771546116,4.69e-06,3301.6,3301.5,3.31578611]
[1737771551918,4.69e-06,3301.6,3301.4,0.4719]
[1737771551919,4.69e-06,3301.6,3301.4,0.48465]
[1737771552215,4.69e-06,3301.6,3301.5,0.48465]
[1737771552414,0.52170469,3301.6,3301.5,0.48465]
[1737771553817,0.52170469,3301.6,3301.1,2.984]
[1737771554014,0.48465,3301.5,3301.2,0.48468]
[1737771554209,1.00634469,3301.6,3301.3,0.48468]
[1737771554417,0.52170469,3301.6,3301.1,2.984]